[Event "WYCC 2018 G18"]
[Site "Halkidiki"]
[Date "2018.10.21"]
[Round "2"]
[White "Tejaswini, Sagar"]
[Black "Horn, Caro"]
[Result "1-0"]
[ECO "C06"]
[WhiteElo "2139"]
[BlackElo "1133"]
[Annotator "NA"]
[PlyCount "95"]
[EventDate "2018.10.20"]
[EventType "swiss"]
[EventCountry "GRE"]
[SourceTitle "playchess.com"]
[Source "ChessBase"]
[SourceQuality "1"]
[TimeControl "40/5400+30:1800+30"]

1. e4 {[%emt 0:00:00]} e6 {[%emt 0:00:00]} 2. d4 {[%emt 0:00:00]} d5 {[%emt 0:00:39]} 3. Nd2 {[%emt 0:00:00]} Nf6 {[%emt 0:01:13]} 4. e5 {[%emt 0:00:02]} Nfd7 {[%emt 0:01:04]} 5. Bd3 {[%emt 0:00:10]} c5 {[%emt 0:03:08]} 6. c3 {[%emt 0:00:05]} Nc6 {[%emt 0:03:16]} 7. Ne2 {[%emt 0:00:06]} cxd4 {[%emt 0:02:40]} 8. cxd4 {[%emt 0:00:03]} f6 {[%emt 0:03:03]} 9. exf6 {[%emt 0:00:15]} Nxf6 {[%emt 0:01:47]} 10. Nf3 {[%emt 0:00:44]} Bd6 {[%emt 0:03:14]} 11. O-O {[%emt 0:00:12]} O-O {[%emt 0:05:56] LiveBook: 1235 Partien} 12. Bf4 {[%emt 0:01:20]} Bxf4 {[%emt 0:04:27]} 13. Nxf4 {[%emt 0:00:05]} Qc7 {[%emt 0:02:25]} 14. g3 {[%emt 0:02:22]} Bd7 {[%emt 0:01:26]} 15. Rc1 {[%emt 0:01:39]} Qb6 {[%emt 0:03:15] C06: Französische Verteidigung (Tarrasch-Variante)} 16. b3 {[%emt 0:10:42]} Rac8 {[%emt 0:05:07]} (16... Rae8 17. Re1 Nxd4 18. Nxd4 e5 19. Nxd5 Nxd5 20. Bc4 exd4 21. Bxd5+ Kh8 22. Rxe8 Rxe8 {½-½ (42) Tishin,P (2406)-Pourramezanali,A (2463) Dubna 2015}) 17. Bb1 {[%emt 0:07:39]} Rfe8 $146 {[%emt 0:03:08]} ({Vorgänger:} 17... Rce8 18. Re1 Nxd4 19. Qxd4 Qxd4 20. Nxd4 e5 21. Nde2 exf4 22. Nxf4 g5 23. Nd3 Ne4 24. Rc7 Bh3 25. Nb4 Nd2 26. Bxh7+ Kh8 27. Rec1 Re2 28. Nd3 Rfxf2 {0-1 (28) Polakovic,P-Sykora,J Czechoslovakia 1989}) 18. Re1 {[%emt 0:08:22]} Qa5 {[%emt 0:04:06]} ({Black should try} 18... Nxd4 $1 $14 19. Qxd4 Qxd4 20. Nxd4 Rxc1 21. Rxc1 e5) 19. Nd3 {[%emt 0:10:58]} Nb4 {[%emt 0:05:09]} 20. Qd2 {[%emt 0:02:53]} b6 {[%emt 0:01:31]} 21. Qxb4 {[%emt 0:02:07]} Qa6 {[%emt 0:00:58]} 22. Nfe5 {[%emt 0:01:08]} Qb7 {[%emt 0:02:49]} 23. Rxc8 {[%emt 0:04:13]} Bxc8 {[%emt 0:01:29]} 24. Rc1 {[%emt 0:02:09]} a5 {[%emt 0:03:35]} 25. Qc3 {[%emt 0:01:49]} Ne4 {[%emt 0:03:52]} 26. Qc6 {[%emt 0:04:14]} Kf8 {[%emt 0:03:35]} 27. Qxb7 {[%emt 0:01:15]} Bxb7 {[%emt 0:00:46]} 28. Nd7+ {[%emt 0:00:52]} Kg8 {[%emt 0:01:22]} 29. Nxb6 {[%emt 0:01:10]} Nd2 {[%emt 0:01:09]} 30. Ne5 {[%emt 0:01:16]} Nxb1 {[%emt 0:02:35]} 31. Rxb1 $18 {[%emt 0:00:02]} h6 {[%emt 0:00:41]} 32. Rc1 {[%emt 0:00:08]} Rb8 {[%emt 0:01:45]} 33. Ned7 {[%emt 0:01:31]} Rd8 {[%emt 0:00:37]} 34. Rc7 {[%emt 0:00:06]} Ba6 {[%emt 0:00:20]} 35. Nc5 {[%emt 0:01:09]} Bb5 {[%emt 0:00:58]} 36. a4 {[%emt 0:00:45]} Rd6 {[%emt 0:01:58]} 37. Nc8 {[%emt 0:00:38]} Rd8 {[%emt 0:01:56]} 38. axb5 {[%emt 0:00:09]} Kh7 {[%emt 0:00:31]} 39. b6 {[%emt 0:00:10]} e5 {[%emt 0:00:37]} 40. b7 {[%emt 0:00:00]} exd4 {[%emt 0:00:00]} 41. b8=Q {[%emt 0:00:28]} d3 {[%emt 0:01:11]} 42. Nxd3 {[%emt 0:00:02]} d4 {[%emt 0:00:30]} 43. Qb7 {[%emt 0:00:08]} Rg8 {[%emt 0:00:25]} 44. Ne7 {[%emt 0:00:20]} Rf8 {[%emt 0:00:44]} 45. Nf5 {[%emt 0:00:28]} Kg6 {[%emt 0:00:58]} 46. g4 {[%emt 0:00:30]} a4 {[%emt 0:00:31]} 47. Rxg7+ {[%emt 0:00:09]} Kf6 {[%emt 0:00:33]} 48. Qe7# {[%emt 0:00:05]} 1-0

[Event "WYCC 2018 G18"]
[Site "Halkidiki"]
[Date "2018.10.21"]
[Round "2"]
[White "Janiashvili, Mariami"]
[Black "Martynkova, Olena"]
[Result "1/2-1/2"]
[ECO "E73"]
[WhiteElo "2081"]
[BlackElo "2188"]
[Annotator "ChessBase"]
[PlyCount "284"]
[EventDate "2018.10.20"]
[EventType "swiss"]
[EventCountry "GRE"]
[SourceTitle "playchess.com"]
[Source "ChessBase"]
[SourceQuality "1"]
[TimeControl "40/5400+30:1800+30"]

1. d4 {[%emt 0:00:00]} Nf6 {[%emt 0:00:00]} 2. c4 {[%emt 0:00:00]} g6 {[%emt 0:00:46]} 3. Nc3 {[%emt 0:00:00]} Bg7 {[%emt 0:00:24]} 4. e4 {[%emt 0:00:00]} d6 {[%emt 0:00:31]} 5. Be2 {[%emt 0:00:39]} O-O {[%emt 0:00:39]} 6. Bg5 {[%emt 0:00:51]} Na6 {[%emt 0:02:42]} 7. Qd2 {[%emt 0:01:14]} c6 {[%emt 0:03:48]} 8. Rd1 {[%emt 0:01:10]} Nc7 {[%emt 0:01:31]} 9. Bf3 {[%emt 0:00:05]} Qe8 {[%emt 0:13:33]} 10. Nge2 {[%emt 0:05:43]} e5 {[%emt 0:05:35]} 11. dxe5 {[%emt 0:16:44]} dxe5 {[%emt 0:00:22]} 12. O-O {[%emt 0:01:40]} Ne6 {[%emt 0:07:30]} 13. Be3 {[%emt 0:12:00]} b6 {[%emt 0:09:42]} 14. Qd6 {[%emt 0:06:44]} Ba6 {[%emt 0:04:23]} 15. b3 {[%emt 0:01:01]} c5 {[%emt 0:07:01]} 16. Qd2 {[%emt 0:12:04]} Nd4 {[%emt 0:06:52]} 17. Bg5 {[%emt 0:06:53]} Bb7 {[%emt 0:03:11]} 18. Bxf6 {[%emt 0:09:27]} Bxf6 {[%emt 0:04:27]} 19. Nd5 {[%emt 0:01:13]} Bxd5 {[%emt 0:01:35]} 20. cxd5 {[%emt 0:01:17]} Qe7 {[%emt 0:02:48]} 21. Qd3 {[%emt 0:05:12]} Bg5 {[%emt 0:07:39]} 22. Bg4 {[%emt 0:07:03]} Bh6 {[%emt 0:04:59]} 23. Qh3 {[%emt 0:02:59]} Qg5 {[%emt 0:06:30]} 24. Nxd4 {[%emt 0:02:34]} cxd4 {[%emt 0:00:02]} 25. f4 {[%emt 0:02:25]} exf4 {[%emt 0:00:08]} 26. Rxd4 {[%emt 0:00:03]} Bg7 {[%emt 0:03:45]} 27. Rc4 {[%emt 0:00:22]} b5 {[%emt 0:01:48]} 28. Rc6 {[%emt 0:01:43]} Qe5 {[%emt 0:00:49]} 29. Qd3 {[%emt 0:01:05]} f5 {[%emt 0:00:55]} 30. exf5 {[%emt 0:00:43]} gxf5 {[%emt 0:00:02]} 31. Bf3 {[%emt 0:01:01]} Qe3+ {[%emt 0:00:13]} 32. Qxe3 {[%emt 0:00:05]} fxe3 {[%emt 0:00:02]} 33. Be2 {[%emt 0:00:34]} a6 {[%emt 0:00:21]} 34. g3 {[%emt 0:00:34]} b4 {[%emt 0:01:25]} 35. Kg2 {[%emt 0:01:20]} a5 {[%emt 0:00:07]} 36. Bc4 {[%emt 0:00:04]} Kh8 {[%emt 0:00:52]} 37. Kf3 {[%emt 0:00:53]} Rae8 {[%emt 0:00:56]} 38. Ke2 {[%emt 0:00:31]} Re5 {[%emt 0:00:33]} 39. Re6 {[%emt 0:00:51]} Rxe6 {[%emt 0:00:30]} 40. dxe6 {[%emt 0:00:00]} Bh6 {[%emt 0:00:00]} 41. Bb5 {[%emt 0:05:25]} Bg5 {[%emt 0:02:08]} 42. h4 {[%emt 0:00:47]} Be7 {[%emt 0:01:17]} 43. Kxe3 {[%emt 0:01:09]} Kg7 {[%emt 0:08:27]} 44. Bd3 {[%emt 0:02:49]} Kg6 {[%emt 0:15:20]} 45. g4 {[%emt 0:09:04]} Bxh4 {[%emt 0:00:54]} 46. Bxf5+ {[%emt 0:02:07]} Kg7 {[%emt 0:00:13]} 47. Ke4 {[%emt 0:00:10]} h6 {[%emt 0:00:47]} 48. Rc1 {[%emt 0:00:35]} Be7 {[%emt 0:03:09]} 49. Rc7 {[%emt 0:00:07]} Kf6 {[%emt 0:00:10]} 50. Ra7 {[%emt 0:00:24]} Rh8 {[%emt 0:02:36]} 51. Kf4 {[%emt 0:03:51]} Bd6+ {[%emt 0:00:53]} 52. Kf3 {[%emt 0:00:33]} Be7 {[%emt 0:00:33]} 53. Ke4 {[%emt 0:00:09]} Rg8 {[%emt 0:00:33]} 54. Rxa5 {[%emt 0:01:16]} Rg5 {[%emt 0:00:29]} 55. Ra8 {[%emt 0:07:48]} h5 {[%emt 0:00:08]} 56. Rh8 {[%emt 0:00:59]} hxg4 {[%emt 0:00:04]} 57. Rh6+ {[%emt 0:00:03]} Kg7 {[%emt 0:00:08]} 58. Rh7+ {[%emt 0:00:08]} Kf8 {[%emt 0:00:23]} 59. Rf7+ {[%emt 0:00:52]} Ke8 {[%emt 0:00:08]} 60. Rh7 {[%emt 0:00:48]} g3 {[%emt 0:00:28]} 61. Rh8+ {[%emt 0:01:52]} Bf8 {[%emt 0:00:03]} 62. Bh3 {[%emt 0:00:46]} g2 {[%emt 0:00:36]} 63. Bxg2 {[%emt 0:00:26]} Rxg2 {[%emt 0:00:07]} 64. Kd5 {[%emt 0:00:18]} Rxa2 {[%emt 0:00:18]} 65. Rh7 {[%emt 0:00:16]} Rc2 {[%emt 0:02:14]} 66. Rb7 {[%emt 0:00:27]} Rc5+ {[%emt 0:00:13]} 67. Kd4 {[%emt 0:00:10]} Rc6 {[%emt 0:01:41]} 68. Rb8+ {[%emt 0:00:12]} Ke7 {[%emt 0:00:05]} 69. Rxb4 {[%emt 0:00:15]} Kxe6 {[%emt 0:00:20]} 70. Rb7 {[%emt 0:00:42]} Bc5+ {[%emt 0:00:12]} 71. Ke4 {[%emt 0:00:27]} Kd6 {[%emt 0:00:09]} 72. Rh7 {[%emt 0:00:23]} Rc8 {[%emt 0:00:30]} 73. Rh6+ {[%emt 0:00:11]} Ke7 {[%emt 0:00:13]} 74. Kd5 {[%emt 0:00:22]} Bb4 {[%emt 0:00:50]} 75. Rb6 {[%emt 0:01:16]} Ba5 {[%emt 0:00:25]} 76. Ra6 {[%emt 0:00:32]} Bc7 {[%emt 0:00:24]} 77. Ra7 {[%emt 0:01:19]} Kd7 {[%emt 0:00:07]} 78. Ra6 {[%emt 0:00:27]} Rb8 {[%emt 0:00:08]} 79. Kc4 {[%emt 0:00:16]} Bb6 {[%emt 0:00:29]} 80. Kd5 {[%emt 0:00:40]} Kc7 {[%emt 0:00:15]} 81. Ra2 {[%emt 0:00:10]} Rd8+ {[%emt 0:00:21]} 82. Kc4 {[%emt 0:00:23]} Kc6 {[%emt 0:00:02]} 83. Rg2 {[%emt 0:00:14]} Rd4+ {[%emt 0:00:12]} 84. Kc3 {[%emt 0:00:08]} Kb5 {[%emt 0:00:19]} 85. Rg5+ {[%emt 0:00:27]} Bc5 {[%emt 0:00:04]} 86. Rg8 {[%emt 0:01:06]} Rf4 {[%emt 0:00:10]} 87. Rb8+ {[%emt 0:00:09]} Bb6 {[%emt 0:00:02]} 88. Rc8 {[%emt 0:01:30]} Rf3+ {[%emt 0:00:55]} 89. Kc2 {[%emt 0:00:28]} Rf2+ {[%emt 0:00:47]} 90. Kd3 {[%emt 0:00:14]} Kb4 {[%emt 0:01:02]} 91. Ke4 {[%emt 0:00:58]} Kxb3 {[%emt 0:00:19]} 92. Rb8 {[%emt 0:00:16]} Rf6 {[%emt 0:00:03]} 93. Rg8 {[%emt 0:00:18]} Kc4 {[%emt 0:00:09]} 94. Rc8+ {[%emt 0:00:21]} Bc5 {[%emt 0:00:02]} 95. Rb8 {[%emt 0:00:09]} Re6+ {[%emt 0:00:21]} 96. Kf5 {[%emt 0:00:09]} Kd5 {[%emt 0:00:08]} 97. Rd8+ {[%emt 0:00:17]} Bd6 {[%emt 0:00:02]} 98. Ra8 {[%emt 0:00:05]} Re1 {[%emt 0:01:32]} 99. Ra5+ {[%emt 0:00:39]} Bc5 {[%emt 0:00:04]} 100. Ra4 {[%emt 0:00:13]} Re5+ {[%emt 0:00:11]} 101. Kf4 {[%emt 0:00:13]} Rh5 {[%emt 0:01:01]} 102. Ra8 {[%emt 0:00:33]} Rh4+ {[%emt 0:00:31]} 103. Kf5 {[%emt 0:00:04]} Rh5+ {[%emt 0:00:18]} 104. Kf4 {[%emt 0:00:07]} Rh1 {[%emt 0:00:05]} 105. Re8 {[%emt 0:00:44]} Rf1+ {[%emt 0:00:09]} 106. Kg4 {[%emt 0:00:08]} Bd4 {[%emt 0:00:09]} 107. Re2 {[%emt 0:01:31]} Be5 {[%emt 0:01:23]} 108. Ra2 {[%emt 0:00:54]} Ke4 {[%emt 0:00:21]} 109. Re2+ {[%emt 0:00:10]} Kd4 {[%emt 0:00:04]} 110. Kg5 {[%emt 0:00:07]} Kd5 {[%emt 0:01:42]} 111. Ra2 {[%emt 0:00:18]} Bc3 {[%emt 0:00:29]} 112. Re2 {[%emt 0:00:16]} Bd4 {[%emt 0:00:12]} 113. Kg4 {[%emt 0:00:36]} Rg1+ {[%emt 0:00:27]} 114. Kf5 {[%emt 0:00:19]} Rg3 {[%emt 0:00:09]} 115. Re1 {[%emt 0:00:20]} Rf3+ {[%emt 0:00:29]} 116. Kg4 {[%emt 0:00:05]} Rf2 {[%emt 0:00:56]} 117. Kg3 {[%emt 0:00:42]} Rf7 {[%emt 0:00:21]} 118. Kg4 {[%emt 0:00:04]} Be5 {[%emt 0:00:05]} 119. Rb1 {[%emt 0:00:22]} Ke6 {[%emt 0:00:13]} 120. Rb6+ {[%emt 0:00:10]} Bd6 {[%emt 0:00:02]} 121. Rb5 {[%emt 0:00:05]} Rf4+ {[%emt 0:00:18]} 122. Kg5 {[%emt 0:00:11]} Rf1 {[%emt 0:00:30]} 123. Kg4 {[%emt 0:00:14]} Rg1+ {[%emt 0:00:05]} 124. Kf3 {[%emt 0:00:11]} Be5 {[%emt 0:00:02]} 125. Rb7 {[%emt 0:01:05]} Kf5 {[%emt 0:00:14]} 126. Rf7+ {[%emt 0:00:07]} Bf6 {[%emt 0:00:03]} 127. Rb7 {[%emt 0:00:32]} Rf1+ {[%emt 0:00:03]} 128. Ke3 {[%emt 0:00:06]} Bg5+ {[%emt 0:00:06]} 129. Kd3 {[%emt 0:00:11]} Rd1+ {[%emt 0:00:06]} 130. Kc4 {[%emt 0:00:12]} Ke4 {[%emt 0:00:05]} 131. Rb3 {[%emt 0:00:25]} Be3 {[%emt 0:00:36]} 132. Rc3 {[%emt 0:00:25]} Rd4+ {[%emt 0:00:13]} 133. Kb5 {[%emt 0:00:05]} Rd5+ {[%emt 0:00:13]} 134. Kc6 {[%emt 0:00:14]} Rd8 {[%emt 0:00:40]} 135. Rb3 {[%emt 0:00:25]} Bd4 {[%emt 0:00:14]} 136. Rh3 {[%emt 0:00:08]} Rc8+ {[%emt 0:00:11]} 137. Kd7 {[%emt 0:00:09]} Rg8 {[%emt 0:00:06]} 138. Kc6 {[%emt 0:00:23]} Rg6+ {[%emt 0:00:15]} 139. Kb5 {[%emt 0:00:22]} Rb6+ {[%emt 0:00:44]} 140. Kc4 {[%emt 0:00:04]} Rc6+ {[%emt 0:00:15]} 141. Kb5 {[%emt 0:00:04]} Rc5+ {[%emt 0:00:10]} 142. Kb4 Ke5 1/2-1/2

[Event "WYCC 2018 G18"]
[Site "Halkidiki"]
[Date "2018.10.21"]
[Round "2"]
[White "Avetisyan, Mariam"]
[Black "Obolentseva, Alexandra"]
[Result "1/2-1/2"]
[ECO "A56"]
[WhiteElo "2049"]
[BlackElo "2298"]
[Annotator "NA"]
[PlyCount "61"]
[EventDate "2018.10.20"]
[EventType "swiss"]
[EventCountry "GRE"]
[SourceTitle "playchess.com"]
[Source "ChessBase"]
[SourceQuality "1"]
[TimeControl "40/5400+30:1800+30"]

{[%evp 17,56,0,0,-5,-5,-19,32767,0,-13,-5,0,-8,32767,-23,-10,32767,12,32767,56,133,148,32767,266,270,32767,162,32767,157,242,222,32767,32767,32767,32767,32767,267,225,32767,32767,17,118]} 1. d4 {[%emt 0:00:00]} Nf6 {[%emt 0:00:00]} 2. c4 {[%emt 0:00:00]} c5 {[%emt 0:00:00]} 3. Nf3 {[%emt 0:00:21]} cxd4 {[%emt 0:00:10]} 4. Nxd4 {[%emt 0:00:07]} a6 {[%emt 0:00:06]} 5. Nc3 {[%emt 0:00:15]} d5 {[%emt 0:00:09]} 6. e3 {[%emt 0:17:31]} e5 {[%emt 0:00:29] A31: Symmetrical English: 2 Nf3 Nf6 3 d4} 7. Nf3 {[%emt 0:02:07]} e4 {[%emt 0:00:09]} 8. Nd4 {[%emt 0:00:31]} dxc4 {[%emt 0:00:10]} 9. Bxc4 {[%emt 0:10:03]} Bc5 $146 {[%emt 0:00:07]} ({Predecessor:} 9... Be7 10. Qc2 b5 11. Be2 Bb7 12. Nf5 O-O 13. O-O Qd7 14. Nxe7+ Qxe7 {0-1 (30) Nikolov,M (2543)-Antal,G (2546) Porto Rio 2015}) 10. O-O {[%emt 0:04:26]} O-O {[%emt 0:01:54]} 11. Nce2 {[%emt 0:05:54]} Nbd7 {[%emt 0:01:53]} 12. Ng3 {[%emt 0:05:38]} b5 {[%emt 0:02:24]} 13. Be2 {[%emt 0:00:58]} Bb7 {[%emt 0:00:11]} 14. b3 {[%emt 0:02:52]} Qb6 {[%emt 0:02:43]} 15. Bb2 {[%emt 0:03:07]} Rfd8 {[%emt 0:00:08]} 16. a4 {[%emt 0:04:21]} bxa4 {[%emt 0:01:25]} 17. Rxa4 {[%emt 0:01:58]} Ne5 {[%emt 0:03:26] [#]} 18. Qa1 $1 {[%emt 0:05:46]} Nfd7 {[%emt 0:06:24]} 19. Ndf5 {[%emt 0:05:35]} Re8 {[%emt 0:02:13]} (19... f6 $16 {was worth a try.}) 20. Rd1 {[%emt 0:02:39]} ({Much less strong is} 20. Nxe4 $6 Qg6 $16) 20... f6 {[%emt 0:06:47]} 21. Nh5 {[%emt 0:09:43]} Bf8 {[%emt 0:00:23]} 22. Rad4 {[%emt 0:09:09]} Nc5 {[%emt 0:08:38] [#]} (22... Bc6 $16 {was necessary.}) 23. Rd6 $1 {[%emt 0:01:11]} Qc7 24. Rxf6 {[%emt 0:07:12]} gxf6 {[%emt 0:01:24]} 25. Nxf6+ {[%emt 0:00:03]} Kh8 {[%emt 0:00:50]} 26. Nxe8 {[%emt 0:00:58]} (26. Rc1 $142) 26... Rxe8 {[%emt 0:00:06] [#]} 27. Bh5 $2 {[%emt 0:01:14]} (27. Rd8 $3 $18 {[%mdl 512]} Qxd8 28. Bxe5+ Kg8 29. Bg7) 27... Re6 {[%emt 0:00:06]} 28. Nd4 {[%emt 0:00:48]} Re7 {[%emt 0:00:05]} (28... Rd6 $1 $11 {keeps the balance.}) 29. Nf5 {[%emt 0:00:17]} Re6 {[%emt 0:00:05]} 30. Nd4 {[%emt 0:00:04]} Re7 {[%emt 0:00:05]} 31. Nf5 1/2-1/2

[Event "WYCC 2018 G18"]
[Site "Halkidiki"]
[Date "2018.10.21"]
[Round "2"]
[White "Tarini Goyal"]
[Black "Sliwicka, Alicja"]
[Result "1/2-1/2"]
[ECO "D76"]
[WhiteElo "2026"]
[BlackElo "2264"]
[Annotator "ChessBase"]
[PlyCount "85"]
[EventDate "2018.10.20"]
[EventType "swiss"]
[EventCountry "GRE"]
[SourceTitle "playchess.com"]
[Source "ChessBase"]
[SourceQuality "1"]
[TimeControl "40/5400+30:1800+30"]

1. d4 {[%emt 0:00:11]} Nf6 {[%emt 0:00:00]} 2. c4 {[%emt 0:00:09]} g6 {[%emt 0:00:00]} 3. Nf3 {[%emt 0:00:10]} Bg7 {[%emt 0:00:00]} 4. g3 {[%emt 0:00:06]} O-O {[%emt 0:00:11]} 5. Bg2 {[%emt 0:00:06]} d5 {[%emt 0:00:08]} 6. cxd5 {[%emt 0:00:10]} Nxd5 {[%emt 0:00:05]} 7. O-O {[%emt 0:00:10]} Nb6 {[%emt 0:00:07]} 8. Nc3 {[%emt 0:01:42]} Nc6 {[%emt 0:00:10]} 9. e3 {[%emt 0:00:08]} a5 {[%emt 0:00:06]} 10. d5 {[%emt 0:01:16]} Nb4 {[%emt 0:00:13]} 11. e4 {[%emt 0:00:08]} f5 {[%emt 0:00:19]} 12. Ng5 {[%emt 0:01:01]} h6 {[%emt 0:00:18]} 13. a3 {[%emt 0:02:34]} Na6 {[%emt 0:11:06]} 14. Ne6 {[%emt 0:05:30]} Bxe6 {[%emt 0:00:14]} 15. dxe6 {[%emt 0:00:06]} Qxd1 {[%emt 0:00:59]} 16. Rxd1 {[%emt 0:00:23]} c6 {[%emt 0:03:26]} 17. exf5 {[%emt 0:17:54]} gxf5 {[%emt 0:00:37]} 18. Bf1 {[%emt 0:14:58]} Nc7 {[%emt 0:11:55]} 19. Be3 {[%emt 0:00:49]} Nbd5 {[%emt 0:01:31]} 20. Nxd5 {[%emt 0:01:32]} Nxd5 {[%emt 0:00:26]} 21. Bd4 {[%emt 0:01:47]} Rad8 {[%emt 0:05:08]} 22. Bc4 {[%emt 0:06:22]} Bxd4 {[%emt 0:02:26]} 23. Rxd4 {[%emt 0:00:09]} Nb6 {[%emt 0:00:59]} 24. Rad1 {[%emt 0:12:31]} Rxd4 {[%emt 0:00:14]} 25. Rxd4 {[%emt 0:00:02]} Nxc4 {[%emt 0:00:39]} 26. Rxc4 {[%emt 0:00:06]} Rd8 {[%emt 0:02:54]} 27. g4 {[%emt 0:11:49]} Kg7 {[%emt 0:05:40]} 28. gxf5 {[%emt 0:01:38]} Kf6 {[%emt 0:04:04]} 29. Rh4 {[%emt 0:04:38]} Kg5 {[%emt 0:01:17]} 30. Rh3 {[%emt 0:00:07]} a4 {[%emt 0:05:48]} 31. b3 {[%emt 0:06:48]} Kxf5 {[%emt 0:05:20]} 32. bxa4 {[%emt 0:00:10]} Kxe6 {[%emt 0:03:42]} 33. Rxh6+ {[%emt 0:00:08]} Kd5 {[%emt 0:06:24]} 34. Kf1 {[%emt 0:02:53]} Ra8 {[%emt 0:03:06]} 35. Rh7 {[%emt 0:02:54]} Kd6 {[%emt 0:01:27]} 36. Rh4 {[%emt 0:00:15]} c5 {[%emt 0:00:58]} 37. Ke2 {[%emt 0:00:11]} e6 {[%emt 0:02:18]} 38. Rg4 {[%emt 0:02:41]} Kd5 {[%emt 0:03:53]} 39. h4 {[%emt 0:01:29]} c4 {[%emt 0:09:04]} 40. h5 {[%emt 0:00:00]} Rxa4 {[%emt 0:00:00]} 41. Rg3 {[%emt 0:01:26]} c3 {[%emt 0:15:24]} 42. Rxc3 {[%emt 0:01:40]} Rh4 {[%emt 0:00:09]} 43. Rb3 {[%emt 0:04:48]} 1/2-1/2

[Event "WYCC 2018 G18"]
[Site "Halkidiki"]
[Date "2018.10.21"]
[Round "2"]
[White "Greibrokk, Ingrid"]
[Black "Kiolbasa, Oliwia"]
[Result "0-1"]
[ECO "A10"]
[WhiteElo "2018"]
[BlackElo "2254"]
[Annotator "NA"]
[PlyCount "68"]
[EventDate "2018.10.20"]
[EventType "swiss"]
[EventCountry "GRE"]
[SourceTitle "playchess.com"]
[Source "ChessBase"]
[SourceQuality "1"]
[TimeControl "40/5400+30:1800+30"]

1. c4 {[%emt 0:00:00]} b6 {[%emt 0:00:00]} 2. Nf3 {[%emt 0:00:00]} Bb7 {[%emt 0:00:00]} 3. d4 {[%emt 0:00:17]} Nf6 {[%emt 0:02:09]} 4. Nc3 {[%emt 0:00:23]} e6 {[%emt 0:00:32]} 5. g3 {[%emt 0:06:07]} c5 {[%emt 0:02:12] E12: Queen's Indian: Unusual White 4th moves, 4 a3, 4 Nc3 Bb7 5 a3 and 4 Nc3 Bb7} (5... Bb4 6. Bg2 O-O 7. O-O Bxc3 8. bxc3 d6 9. d5 Nbd7 10. Bg5 exd5 11. cxd5 Bxd5 12. Re1 h6 13. Qxd5 Nxd5 14. Bxd8 Raxd8 15. Nd4 N7f6 16. e4 Ne7 17. Nb5 {½-½ (115) Li,C (2751)-Mamedyarov,S (2747) Huaian 2016}) 6. d5 {[%emt 0:09:13]} exd5 {[%emt 0:08:14]} 7. cxd5 {[%emt 0:05:04]} d6 {[%emt 0:13:25]} 8. Bg2 {[%emt 0:02:44]} Na6 {[%emt 0:00:54]} 9. O-O {[%emt 0:04:39]} Nc7 {[%emt 0:00:49]} 10. e4 {[%emt 0:01:23]} Be7 {[%emt 0:09:57]} 11. Nh4 $146 {[%emt 0:07:18]} ({Predecessor:} 11. Re1 O-O 12. b3 {½-½ (89) Krzesaj,R (2387)-Szwed,J (2202) Leba 2006}) 11... O-O {[%emt 0:03:11]} 12. Nf5 {[%emt 0:00:19]} b5 {[%emt 0:01:07]} 13. e5 {[%emt 0:17:35]} Nfe8 {[%emt 0:05:29]} 14. Qg4 {[%emt 0:02:23]} Bc8 {[%emt 0:04:43]} 15. Be4 {[%emt 0:02:06]} Bxf5 {[%emt 0:02:54]} 16. Qxf5 {[%emt 0:03:46]} g6 {[%emt 0:00:16]} 17. Qh3 {[%emt 0:03:37]} b4 {[%emt 0:09:52]} 18. Ne2 {[%emt 0:02:54]} dxe5 {[%emt 0:02:32]} 19. d6 {[%emt 0:01:17]} Nxd6 {[%emt 0:00:07]} 20. Bxa8 {[%emt 0:00:06]} Qxa8 {[%emt 0:00:30]} 21. Bh6 {[%emt 0:09:45]} Rd8 {[%emt 0:01:26]} 22. Rad1 {[%emt 0:00:15]} Nf5 {[%emt 0:05:04]} 23. Rxd8+ {[%emt 0:06:09]} Qxd8 {[%emt 0:00:26]} 24. Bc1 {[%emt 0:02:17]} Ne6 {[%emt 0:04:01]} 25. Qg2 {[%emt 0:00:22]} Qd3 {[%emt 0:01:23]} 26. f4 {[%emt 0:02:40]} e4 {[%emt 0:00:49]} 27. Kh1 {[%emt 0:02:58]} Ned4 {[%emt 0:05:55]} 28. Ng1 {[%emt 0:05:11]} Bf6 {[%emt 0:03:15]} 29. Re1 {[%emt 0:01:15]} Nf3 {[%emt 0:00:24]} 30. Nxf3 {[%emt 0:01:19]} exf3 $19 {[%emt 0:00:06]} ({Weaker is} 30... Qxf3 31. Qxf3 exf3 32. Rf1 $14) 31. Qf1 {[%emt 0:00:54]} Qd5 {[%emt 0:00:50]} 32. Rd1 {[%emt 0:00:28]} Bd4 {[%emt 0:00:33]} 33. b3 {[%emt 0:00:40]} Nxg3+ {[%emt 0:00:30]} 34. hxg3 {[%emt 0:00:08]} Qh5+ {[%emt 0:00:04]} 0-1

[Event "WYCC 2018 G18"]
[Site "Halkidiki"]
[Date "2018.10.21"]
[Round "2"]
[White "Du, Yuxin"]
[Black "Hunt, Fikirte"]
[Result "1-0"]
[ECO "B53"]
[WhiteElo "2011"]
[BlackElo "1827"]
[Annotator "NA"]
[PlyCount "75"]
[EventDate "2018.10.20"]
[EventType "swiss"]
[EventCountry "GRE"]
[SourceTitle "playchess.com"]
[Source "ChessBase"]
[SourceQuality "1"]
[TimeControl "40/5400+30:1800+30"]

1. e4 {[%emt 0:00:00]} c5 {[%emt 0:00:00]} 2. Nf3 {[%emt 0:00:00]} d6 {[%emt 0:00:00]} 3. d4 {[%emt 0:01:52]} cxd4 {[%emt 0:00:06]} 4. Qxd4 {[%emt 0:01:28]} Nc6 {[%emt 0:00:19]} 5. Bb5 {[%emt 0:00:08]} Bd7 {[%emt 0:00:27]} 6. Bxc6 {[%emt 0:00:09]} Bxc6 {[%emt 0:00:34]} 7. Nc3 {[%emt 0:00:14]} Nf6 {[%emt 0:01:45]} 8. Bg5 {[%emt 0:00:11]} e6 {[%emt 0:01:31]} 9. O-O-O {[%emt 0:00:18]} Be7 {[%emt 0:01:44]} 10. Qd3 {[%emt 0:01:21]} a6 {[%emt 0:12:34]} 11. Nd4 {[%emt 0:08:26]} Rc8 {[%emt 0:14:31]} 12. f4 {[%emt 0:06:56]} Qa5 {[%emt 0:18:51] [#]} (12... O-O $11 {keeps the balance.}) 13. Kb1 $14 {[%emt 0:17:18]} (13. Bxf6 $1 $16 gxf6 14. Kb1 (14. Nxc6 bxc6 15. Kb1 Rb8 $14)) 13... d5 {[%emt 0:07:00]} 14. Bxf6 {[%emt 0:27:26]} Bxf6 {[%emt 0:06:49]} 15. e5 {[%emt 0:00:49]} Be7 {[%emt 0:00:56]} 16. f5 {[%emt 0:03:55]} Bd7 {[%emt 0:10:37]} 17. fxe6 {[%emt 0:01:19]} Bxe6 {[%emt 0:00:39]} 18. Nxe6 {[%emt 0:10:39]} fxe6 {[%emt 0:00:17]} 19. Rhf1 {[%emt 0:05:52]} Qc7 {[%emt 0:06:34]} 20. Qh3 {[%emt 0:03:54]} Qc6 {[%emt 0:03:18]} 21. Qf3 {[%emt 0:03:55]} Kd7 {[%emt 0:01:52]} 22. Qg4 {[%emt 0:01:23]} Kc7 {[%emt 0:05:29]} 23. Qxg7 {[%emt 0:00:28]} Qd7 {[%emt 0:01:32]} 24. Rf7 {[%emt 0:02:49]} Rcg8 {[%emt 0:00:46]} 25. Qh6 {[%emt 0:00:05]} Kb8 {[%emt 0:01:13]} 26. Qh3 {[%emt 0:01:03]} h5 {[%emt 0:01:25]} 27. Rxd5 {[%emt 0:00:49]} Qc6 {[%emt 0:00:34]} 28. Rd1 {[%emt 0:00:31]} Bb4 {[%emt 0:00:56]} 29. Rdd7 {[%emt 0:00:21]} Bc5 {[%emt 0:01:18]} 30. Rxb7+ {[%emt 0:00:42]} Ka8 {[%emt 0:00:06]} 31. a3 {[%emt 0:00:28]} Rxg2 {[%emt 0:00:57]} 32. Rbc7 {[%emt 0:00:25]} Rg1+ {[%emt 0:00:13]} 33. Ka2 {[%emt 0:00:06]} Qh1 {[%emt 0:00:53]} 34. Rxc5 {[%emt 0:00:42]} Ra1+ {[%emt 0:00:08]} 35. Kb3 {[%emt 0:00:04]} Rb8+ {[%emt 0:00:05]} 36. Ka4 {[%emt 0:00:39]} Rxb2 {[%emt 0:01:09]} 37. Rc8+ {[%emt 0:01:01]} Rb8 {[%emt 0:00:12]} 38. Qf3+ 1-0